[Event "Czech Youth U14 Boys 2024"]
[Site "Kouty nad Desnou"]
[Date "2024.03.11"]
[Round "4.9"]
[White "Svadlenka, Dominik"]
[Black "Pogorelskiy, Boris"]
[Result "0-1"]
[ECO "D53"]
[WhiteElo "1888"]
[BlackElo "1747"]
[Annotator "NA RC"]
[PlyCount "104"]
[EventDate "2024.03.10"]
[EventType "swiss"]
[EventCountry "CZE"]
[SourceTitle "playchess.com"]
[Source "ChessBase"]
[SourceQuality "1"]
[TimeControl "40/5400+30:1800+30"]

1. d4 {[%emt 0:00:02]} Nf6 {[%emt 0:00:15]} 2. c4 {[%emt 0:00:05]} e6 {[%emt 0:00:03]} 3. Nc3 {[%emt 0:00:04]} d5 {[%emt 0:00:30]} 4. Bg5 {[%emt 0:00:06]} Be7 {[%emt 0:00:37]} 5. e3 {[%emt 0:00:07]} Nbd7 {[%emt 0:00:13]} 6. cxd5 {[%emt 0:00:05]} exd5 {[%emt 0:00:18]} 7. Bd3 {[%emt 0:00:13]} h6 {[%emt 0:00:20]} 8. Bf4 {[%emt 0:00:19]} c6 {[%emt 0:02:02] D35: Queen's Gambit Declined: Exchange Variation.} 9. h3 {[%emt 0:00:24]} O-O {[%emt 0:02:19]} 10. Nf3 {[%emt 0:00:14]} Nb6 {[%emt 0:01:21]} 11. Qc2 {[%emt 0:02:25]} Re8 {[%emt 0:03:10]} 12. O-O {[%emt 0:00:27]} Be6 {[%emt 0:02:45]} 13. Bh2 {[%emt 0:04:01]} Nc8 {[%emt 0:01:16]} 14. Na4 {[%emt 0:03:59]} Bd6 {[%emt 0:02:53]} 15. Nc5 {[%emt 0:02:17]} Bxh2+ {[%emt 0:00:20]} 16. Kxh2 {[%emt 0:00:19]} Qc7+ {[%emt 0:00:19]} 17. Kg1 {[%emt 0:00:53]} Nd7 {[%emt 0:03:21]} (17... Nd6 $11) 18. b4 {[%emt 0:08:19]} Nd6 {[%emt 0:04:05]} 19. Nxd7 {[%emt 0:07:27]} Qxd7 {[%emt 0:00:14]} 20. Ne5 {[%emt 0:00:10]} Qc8 {[%emt 0:00:07]} 21. Rfc1 {[%emt 0:03:52]} a6 {[%emt 0:02:12]} 22. a4 {[%emt 0:00:34]} Bf5 {[%emt 0:00:28]} 23. Rab1 {[%emt 0:11:04]} Bxd3 {[%emt 0:04:09]} 24. Qxd3 {[%emt 0:03:04]} Qe6 {[%emt 0:03:40]} 25. Nf3 {[%emt 0:12:40]} Rec8 {[%emt 0:05:09]} 26. Nd2 {[%emt 0:02:07]} Qd7 {[%emt 0:05:36]} 27. Rc2 {[%emt 0:02:25]} Rc7 {[%emt 0:07:23]} 28. Rbc1 {[%emt 0:01:22]} Rac8 $11 {[%emt 0:00:44]} 29. Qc3 {[%emt 0:04:21]} Qe7 {[%emt 0:04:07]} 30. Qc5 {[%emt 0:02:14]} Qe6 {[%emt 0:08:26]} 31. Qc3 {[%emt 0:02:42]} Ne4 {[%emt 0:03:31]} 32. Nxe4 {[%emt 0:00:26]} Qxe4 {[%emt 0:00:18]} 33. Qb3 {[%emt 0:01:04]} Qe7 {[%emt 0:01:55]} 34. Rc5 {[%emt 0:01:07]} Qd6 {[%emt 0:04:13]} 35. Qc3 {[%emt 0:00:44]} b6 {[%emt 0:00:46]} 36. Qd3 {[%emt 0:02:57]} bxc5 {[%emt 0:00:19]} 37. bxc5 {[%emt 0:00:05]} Qd7 {[%emt 0:00:05]} 38. a5 {[%emt 0:00:49]} Rb8 {[%emt 0:01:51]} 39. Qe2 {[%emt 0:02:53]} Rb5 {[%emt 0:00:14]} 40. Ra1 {[%emt 0:00:14]} Rcb7 {[%emt 0:00:08]} 41. Qd3 {[%emt 0:30:06]} Qc7 {[%emt 0:30:12]} 42. e4 {[%emt 0:00:09]} Rb3 {[%emt 0:00:22]} 43. Qc2 {[%emt 0:01:08]} Rb2 {[%emt 0:00:23]} 44. Qd3 {[%emt 0:00:50]} R7b3 {[%emt 0:00:06]} 45. Qf1 {[%emt 0:00:05]} dxe4 {[%emt 0:00:07]} 46. Re1 {[%emt 0:00:39]} Qf4 {[%emt 0:00:54]} 47. Ra1 {[%emt 0:00:26]} e3 {[%emt 0:00:34]} 48. f3 {[%emt 0:00:12]} Qxd4 {[%emt 0:00:37]} 49. Qxa6 {[%emt 0:00:10]} e2+ {[%emt 0:00:26]} 50. Kh2 {[%emt 0:00:28]} Qe5+ {[%emt 0:00:04]} 51. f4 {[%emt 0:00:26]} Qxf4+ {[%emt 0:00:04]} 52. Kh1 {[%emt 0:00:06]} Rb1+ {[%emt 0:00:04]} 0-1

[Event "Czech Youth U14 Boys 2024"]
[Site "Kouty nad Desnou"]
[Date "2024.03.11"]
[Round "4.10"]
[White "Macosek, Alex"]
[Black "Gregor, Alexandr"]
[Result "1-0"]
[ECO "A45"]
[WhiteElo "1781"]
[BlackElo "1777"]
[Annotator "NA RC"]
[PlyCount "33"]
[EventDate "2024.03.10"]
[EventType "swiss"]
[EventCountry "CZE"]
[SourceTitle "playchess.com"]
[Source "ChessBase"]
[SourceQuality "1"]
[TimeControl "40/5400+30:1800+30"]

1. d4 {[%emt 0:00:42]} Nf6 {[%emt 0:00:16]} 2. Bf4 {[%emt 0:00:47]} d5 {[%emt 0:00:12]} 3. e3 {[%emt 0:00:40]} e6 {[%emt 0:00:37]} 4. Nd2 {[%emt 0:00:35]} Bd6 {[%emt 0:00:38]} 5. Bg3 {[%emt 0:00:19]} O-O {[%emt 0:03:06]} 6. Bd3 {[%emt 0:01:11]} b6 {[%emt 0:01:51]} 7. Ngf3 {[%emt 0:00:25]} Bb7 {[%emt 0:19:50]} 8. O-O {[%emt 0:01:22]} Bxg3 {[%emt 0:00:22]} 9. hxg3 {[%emt 0:00:06]} Nbd7 {[%emt 0:05:24]} 10. c3 {[%emt 0:01:20]} c5 {[%emt 0:01:08]} 11. Re1 {[%emt 0:13:51]} cxd4 {[%emt 0:00:39]} 12. exd4 {[%emt 0:00:31]} a6 {[%emt 0:06:18]} 13. Ne5 {[%emt 0:06:02]} b5 {[%emt 0:01:46]} 14. Ndf3 {[%emt 0:02:25]} Nb6 {[%emt 0:02:05]} 15. Qb1 {[%emt 0:09:04]} Qd6 {[%emt 0:06:55]} 16. Ng5 {[%emt 0:00:36]} h6 {[%emt 0:00:22]} 17. Bh7+ {[%emt 0:00:19]} 1-0

[Event "Czech Youth U14 Boys 2024"]
[Site "Kouty nad Desnou"]
[Date "2024.03.11"]
[Round "4.11"]
[White "Jezek, Jakub"]
[Black "Stara, Zuzana"]
[Result "0-1"]
[ECO "D02"]
[WhiteElo "1854"]
[BlackElo "1807"]
[Annotator "NA RC"]
[PlyCount "102"]
[EventDate "2024.03.10"]
[EventType "swiss"]
[EventCountry "CZE"]
[SourceTitle "playchess.com"]
[Source "ChessBase"]
[SourceQuality "1"]
[TimeControl "40/5400+30:1800+30"]

1. d4 {[%emt 0:00:02]} d5 {[%emt 0:00:06]} 2. Nf3 {[%emt 0:00:05]} Nf6 {[%emt 0:00:05]} 3. g3 {[%emt 0:00:03]} c5 {[%emt 0:00:47]} 4. Bg2 {[%emt 0:00:11]} e6 {[%emt 0:00:13]} 5. O-O {[%emt 0:00:23]} Nc6 {[%emt 0:00:36]} 6. Bg5 {[%emt 0:04:24]} h6 {[%emt 0:00:45]} 7. Bxf6 {[%emt 0:03:24]} Qxf6 {[%emt 0:00:07]} 8. c3 {[%emt 0:01:36]} Bd6 {[%emt 0:03:00]} 9. Qd3 {[%emt 0:10:21] D02: 1 d4 d5 2 Nf3 sidelines, including 2...Nf6 3 g3 and 2...Nf6 3 Bf4.} O-O {[%emt 0:00:46]} 10. Nbd2 {[%emt 0:02:04]} Bd7 {[%emt 0:05:25]} 11. e4 {[%emt 0:08:13]} c4 {[%emt 0:01:14]} 12. Qc2 {[%emt 0:01:54]} Qd8 {[%emt 0:00:32]} 13. e5 {[%emt 0:01:20]} Be7 {[%emt 0:00:13]} 14. Ne1 {[%emt 0:08:01]} f5 {[%emt 0:08:37]} 15. exf6 {[%emt 0:03:31]} Bxf6 {[%emt 0:00:01]} 16. f4 {[%emt 0:00:28]} Ne7 {[%emt 0:00:54]} 17. Nef3 {[%emt 0:02:24]} b5 {[%emt 0:01:38]} 18. Ne5 {[%emt 0:04:09]} Bxe5 {[%emt 0:00:59]} 19. fxe5 {[%emt 0:02:52]} Qb6 {[%emt 0:01:01]} 20. Nf3 {[%emt 0:06:28]} Nf5 {[%emt 0:02:31]} 21. Qd2 {[%emt 0:01:29]} a5 {[%emt 0:01:32]} 22. g4 {[%emt 0:04:07]} Ne7 {[%emt 0:00:31]} 23. g5 {[%emt 0:06:23]} h5 {[%emt 0:02:56]} 24. Nh4 {[%emt 0:01:39]} Rxf1+ {[%emt 0:19:09]} 25. Rxf1 {[%emt 0:00:19]} Be8 {[%emt 0:00:16]} 26. Qf2 {[%emt 0:12:37]} Ng6 {[%emt 0:01:05]} 27. Nf5 {[%emt 0:03:40]} Qd8 {[%emt 0:05:40]} 28. Nd6 {[%emt 0:01:06]} Qe7 {[%emt 0:13:33]} 29. Qg3 {[%emt 0:05:45]} b4 {[%emt 0:03:00]} 30. Nxc4 {[%emt 0:00:32]} Bb5 {[%emt 0:03:32]} 31. Nb6 {[%emt 0:01:55]} Bxf1 {[%emt 0:04:10]} 32. Nxd5 {[%emt 0:02:23]} Qf7 {[%emt 0:02:47]} 33. Nf6+ {[%emt 0:00:59]} gxf6 {[%emt 0:00:14]} 34. Bxa8 {[%emt 0:00:07]} fxe5 {[%emt 0:00:53]} 35. Be4 {[%emt 0:01:47]} Bc4 {[%emt 0:03:06]} 36. Qf3 {[%emt 0:00:57]} Qxf3 {[%emt 0:03:42]} 37. Bxf3 {[%emt 0:00:04]} exd4 {[%emt 0:00:06]} 38. Bxh5 {[%emt 0:00:39]} Nf4 {[%emt 0:00:24]} 39. Bd1 {[%emt 0:00:46]} bxc3 {[%emt 0:01:32]} 40. bxc3 {[%emt 0:00:25]} dxc3 {[%emt 0:00:04]} 41. Kf2 $19 {[%emt 0:01:01]} Nd5 {[%emt 0:03:30]} 42. Ke1 {[%emt 0:00:54]} Ne3 {[%emt 0:01:30]} 43. Ba4 {[%emt 0:01:15]} Kg7 {[%emt 0:00:39]} 44. h4 {[%emt 0:01:30]} e5 {[%emt 0:04:59]} 45. h5 {[%emt 0:00:17]} e4 {[%emt 0:02:12]} 46. Bc6 {[%emt 0:01:31]} Bd3 {[%emt 0:02:57]} 47. Bd7 {[%emt 0:05:01]} Nc2+ {[%emt 0:02:07]} 48. Kd1 {[%emt 0:00:12]} e3 {[%emt 0:00:32]} 49. Bg4 {[%emt 0:01:03]} Nd4 {[%emt 0:00:28]} 50. a3 {[%emt 0:02:08]} c2+ {[%emt 0:00:26]} 51. Kc1 {[%emt 0:00:01]} Nb3+ 0-1

[Event "Czech Youth U14 Boys 2024"]
[Site "Kouty nad Desnou"]
[Date "2024.03.11"]
[Round "4.12"]
[White "Trcalek, Filip"]
[Black "Lorenc, Matej"]
[Result "1-0"]
[ECO "C05"]
[WhiteElo "1615"]
[BlackElo "1637"]
[Annotator "NA RC"]
[PlyCount "59"]
[EventDate "2024.03.10"]
[EventType "swiss"]
[EventCountry "CZE"]
[SourceTitle "playchess.com"]
[Source "ChessBase"]
[SourceQuality "1"]
[TimeControl "40/5400+30:1800+30"]

1. e4 {[%emt 0:00:03]} e6 2. d4 {[%emt 0:00:08]} d5 {[%emt 0:00:12]} 3. Nd2 {[%emt 0:00:11]} Nf6 {[%emt 0:00:16]} 4. e5 {[%emt 0:00:10]} Nfd7 {[%emt 0:00:04]} 5. Bd3 {[%emt 0:00:40]} c5 {[%emt 0:00:13]} 6. c3 {[%emt 0:00:13]} Nc6 {[%emt 0:00:06]} 7. Ne2 {[%emt 0:01:01]} Qb6 {[%emt 0:00:16]} 8. Nf3 {[%emt 0:00:29]} h6 {[%emt 0:01:50]} 9. O-O {[%emt 0:00:50]} Qc7 {[%emt 0:00:52]} 10. Re1 {[%emt 0:01:13]} Nb6 {[%emt 0:00:14]} 11. Qc2 {[%emt 0:01:26]} c4 {[%emt 0:00:11]} 12. Bh7 {[%emt 0:01:10]} g6 {[%emt 0:00:27]} 13. Bxg6 {[%emt 0:00:30]} fxg6 {[%emt 0:00:10]} 14. Qxg6+ {[%emt 0:00:09]} Qf7 {[%emt 0:00:19]} 15. Qxf7+ {[%emt 0:02:44]} Kxf7 {[%emt 0:00:13]} 16. Nf4 {[%emt 0:00:54]} Ne7 {[%emt 0:00:25]} 17. Nh4 {[%emt 0:01:19]} Rg8 {[%emt 0:05:20]} 18. g3 {[%emt 0:03:57]} Ke8 {[%emt 0:00:49]} 19. Nh5 {[%emt 0:00:37]} Kd8 {[%emt 0:01:28]} 20. Nf6 {[%emt 0:01:41]} Rh8 {[%emt 0:00:17]} 21. Re3 {[%emt 0:01:27]} Nd7 {[%emt 0:00:32]} 22. Nh5 {[%emt 0:02:45]} Rg8 {[%emt 0:02:50]} 23. Rf3 {[%emt 0:01:21]} Ng6 {[%emt 0:03:16]} 24. Nxg6 {[%emt 0:00:24]} Rxg6 {[%emt 0:00:06]} 25. Nf4 {[%emt 0:00:16]} Rg8 {[%emt 0:01:02]} 26. Nxe6+ {[%emt 0:00:12]} Ke7 {[%emt 0:00:34]} 27. Nc7 {[%emt 0:00:14]} Rb8 {[%emt 0:01:17]} 28. Nxd5+ Kd8 {[%emt 0:03:04]} 29. e6 {[%emt 0:01:20]} Nb6 {[%emt 0:02:05]} 30. Rxf8+ {[%emt 0:00:18]} 1-0

[Event "Czech Youth U14 Boys 2024"]
[Site "Kouty nad Desnou"]
[Date "2024.03.12"]
[Round "5.1"]
[White "Soucek, Andrej"]
[Black "Popov, Roman"]
[Result "1/2-1/2"]
[ECO "A40"]
[WhiteElo "1825"]
[BlackElo "2353"]
[Annotator "TA"]
[PlyCount "65"]
[EventDate "2024.03.10"]
[EventType "swiss"]
[EventCountry "CZE"]
[SourceTitle "playchess.com"]
[Source "ChessBase"]
[SourceQuality "1"]
[TimeControl "40/5400+30:1800+30"]

{[%evp 15,65,16,15,-33,-31,-20,-18,-41,0,-47,-43,-43,-29,-53,-23,-57,-63,-74,-83,-81,-64,-67,-10,-18,19,19,22,16,14,23,18,0,0,0,0,0,0,0,0,0,0,0,3,0,0,0,0,0,0,0,0,0]} 1. d4 {[%emt 0:00:04]} Nf6 {[%emt 0:00:16]} 2. c4 {[%emt 0:00:10]} e6 {[%emt 0:00:22]} 3. g3 {[%emt 0:00:18]} Bb4+ {[%emt 0:00:27]} 4. Bd2 {[%emt 0:00:15]} Qe7 {[%emt 0:00:17]} 5. Bg2 {[%emt 0:00:50]} Nc6 {[%emt 0:01:00]} 6. Nf3 {[%emt 0:01:01]} Bxd2+ {[%emt 0:00:42]} 7. Qxd2 {[%emt 0:06:01]} Ne4 {[%emt 0:00:48]} 8. Qc2 {[%emt 0:01:02]} Qb4+ {[%emt 0:00:46]} 9. Nbd2 {[%emt 0:27:07]} (9. Kf1 $11) 9... Nxd2 $15 {[%emt 0:00:39]} 10. Qxd2 {[%emt 0:00:04]} Qxc4 {[%emt 0:00:34]} 11. O-O {[%emt 0:00:23]} O-O {[%emt 0:11:51]} 12. h4 {[%emt 0:01:20]} (12. Rfc1 $11 {deserves consideration.} Qa4 13. e4) 12... Qb4 {[%emt 0:03:18]} 13. Qd3 {[%emt 0:05:29]} Qe7 {[%emt 0:09:58]} (13... Qxb2 $2 {loses.} 14. Rfb1 Nb4 15. Qc4 $18 (15. Rxb2 Nxd3 16. exd3 b6 $18)) 14. e4 {[%emt 0:03:59]} d6 {[%emt 0:04:34]} 15. Rac1 {[%emt 0:02:41]} e5 {[%emt 0:03:48]} 16. Rfe1 {[%emt 0:04:00]} a5 {[%emt 0:13:08]} 17. Qc4 {[%emt 0:04:06]} exd4 {[%emt 0:04:49]} 18. Nxd4 {[%emt 0:01:15]} Bd7 {[%emt 0:02:53]} ({Better is} 18... Nxd4 $15 19. Qxd4 c6) 19. e5 $11 {[%emt 0:08:02]} dxe5 {[%emt 0:07:59]} (19... Nxe5 {is more complex.} 20. Qxc7 Qf6 21. Rf1 Rac8) 20. Nxc6 {[%emt 0:00:08]} Bxc6 {[%emt 0:00:48]} 21. Bxc6 {[%emt 0:00:10]} bxc6 {[%emt 0:00:07]} 22. Qxc6 {[%emt 0:00:04][%cal Oc1c5]} f6 {[%emt 0:14:27]} 23. Qxc7 {[%emt 0:00:14] The position is equal.} Qxc7 {[%emt 0:00:38]} 24. Rxc7 {[%emt 0:00:01][%mdl 4096] Endgame. KRR-KRR} Rfc8 {[%emt 0:00:21]} 25. Rec1 {[%emt 0:00:18]} Rxc7 {[%emt 0:00:32]} 26. Rxc7 {[%emt 0:00:02] KR-KR} Rb8 {[%emt 0:00:37]} 27. Ra7 {[%emt 0:02:53]} Rxb2 {[%emt 0:01:04]} 28. Rxa5 {[%emt 0:01:43]} Kf7 {[%emt 0:00:37]} 29. Ra7+ {[%emt 0:00:14]} Kg6 {[%emt 0:00:41]} 30. a4 {[%emt 0:00:53]} Ra2 {[%emt 0:00:14]} 31. a5 {[%emt 0:00:17]} Ra3 {[%emt 0:00:16]} 32. a6 {[%emt 0:00:27]} h5 {[%emt 0:04:29]} 33. Kg2 {[%emt 0:00:55] Weighted Error Value: White=0.12 (very precise) /Black=0.12 (very precise) .  Mistake:       	White=1     	Black=1      Inaccurate:     	White=1     	Black=2      OK:         	White=5     	Black=12     Best:        	White=1     	Black=3} 1/2-1/2

[Event "Czech Youth U14 Boys 2024"]
[Site "Kouty nad Desnou"]
[Date "2024.03.12"]
[Round "5.2"]
[White "Mydlar, Matej"]
[Black "Svadlenka, Michal"]
[Result "1/2-1/2"]
[ECO "B78"]
[WhiteElo "1819"]
[BlackElo "1869"]
[Annotator "NA RC"]
[PlyCount "64"]
[EventDate "2024.03.10"]
[EventType "swiss"]
[EventCountry "CZE"]
[SourceTitle "playchess.com"]
[Source "ChessBase"]
[SourceQuality "1"]
[TimeControl "40/5400+30:1800+30"]

1. e4 {[%emt 0:00:21]} c5 {[%emt 0:00:04]} 2. Nf3 {[%emt 0:00:04]} d6 {[%emt 0:00:04]} 3. d4 {[%emt 0:00:13]} cxd4 {[%emt 0:00:05]} 4. Nxd4 {[%emt 0:00:03]} Nf6 {[%emt 0:00:06]} 5. Nc3 {[%emt 0:00:05]} g6 {[%emt 0:00:06]} 6. Be3 {[%emt 0:00:07]} Bg7 {[%emt 0:00:12]} 7. f3 {[%emt 0:00:04]} O-O {[%emt 0:00:05]} 8. Bc4 {[%emt 0:00:03]} Bd7 {[%emt 0:00:53]} 9. Qd2 {[%emt 0:00:06]} Nc6 {[%emt 0:00:49]} 10. O-O-O {[%emt 0:00:22]} Rb8 {[%emt 0:05:41]} 11. h4 {[%emt 0:01:31]} b5 {[%emt 0:06:32]} 12. Bb3 {[%emt 0:02:51]} Ne5 {[%emt 0:01:20]} 13. h5 {[%emt 0:05:22]} Nc4 {[%emt 0:01:42]} 14. Bxc4 {[%emt 0:01:30]} bxc4 {[%emt 0:00:06]} 15. Nd5 {[%emt 0:01:35] B78: Sizilianisch (Moderne Drachen-Variante).} (15. Kb1 $14 {stays ahead.}) 15... Nxd5 {[%emt 0:05:37]} 16. exd5 {[#]} c3 {[%emt 0:10:30]} 17. Qxc3 {[%emt 0:06:22]} Qb6 {[%emt 0:02:08]} 18. b3 {[%emt 0:01:57]} a5 {[%emt 0:08:06]} (18... Rbc8 $14 19. Qd2 Rfe8 20. hxg6 fxg6) 19. hxg6 {[%emt 0:03:08]} fxg6 {[%emt 0:03:23]} 20. Qd2 {[%emt 0:01:51]} Qc5 {[%emt 0:02:50]} 21. Bh6 {[%emt 0:06:26]} Bxh6 {[%emt 0:03:12]} 22. Qxh6 {[%emt 0:01:10]} Rf7 {[%emt 0:00:12]} 23. Ne6 {[%emt 0:05:05]} Qa3+ {[%emt 0:14:13]} 24. Kb1 {[%emt 0:02:46]} a4 {[%emt 0:02:31]} 25. Qc1 {[%emt 0:05:44]} (25. Rd3 $142) 25... Qb4 {[%emt 0:03:57]} (25... Qxc1+ $16 {is a better defense.} 26. Kxc1 axb3 27. cxb3 (27. axb3 Bxe6 28. dxe6 Rf5 $16) 27... Bxe6) 26. Rd4 {[%emt 0:01:23]} Qb6 {[%emt 0:08:23]} 27. Rg4 (27. Qd2 $18) 27... axb3 {[%emt 0:03:12]} 28. axb3 {[%emt 0:05:03]} (28. cxb3 $16 Qa5 29. Rd4) 28... Qa5 $1 {[%emt 0:02:06] [#]} 29. Rxg6+ {[%emt 0:02:31]} hxg6 {[%emt 0:01:14]} 30. Qh6 $11 {[%emt 0:00:11]} Qc3 {[%emt 0:00:41]} 31. Qxg6+ {[%emt 0:03:22]} Rg7 {[%emt 0:00:08]} 32. Qh5 {[%emt 0:02:19]} Rxb3+ {[%emt 0:08:36]} 1/2-1/2

[Event "Czech Youth U14 Boys 2024"]
[Site "Kouty nad Desnou"]
[Date "2024.03.12"]
[Round "5.3"]
[White "Kroulik, Vaclav"]
[Black "Vana, Jan"]
[Result "1-0"]
[ECO "B31"]
[WhiteElo "1936"]
[BlackElo "1908"]
[Annotator "RC"]
[PlyCount "117"]
[EventDate "2024.03.10"]
[EventType "swiss"]
[EventCountry "CZE"]
[SourceTitle "playchess.com"]
[Source "ChessBase"]
[SourceQuality "1"]
[TimeControl "40/5400+30:1800+30"]

1. e4 {[%emt 0:00:05]} c5 {[%emt 0:00:05]} 2. Nf3 {[%emt 0:00:09]} Nc6 {[%emt 0:00:04]} 3. Bb5 {[%emt 0:00:20]} g6 {[%emt 0:00:06]} 4. Bxc6 {[%emt 0:00:12]} dxc6 {[%emt 0:00:05]} 5. d3 {[%emt 0:00:10]} Bg7 {[%emt 0:00:25]} 6. h3 {[%emt 0:00:12]} Qc7 {[%emt 0:00:39]} 7. O-O {[%emt 0:01:16]} e5 {[%emt 0:01:02]} 8. Be3 {[%emt 0:00:42]} b6 {[%emt 0:00:05]} 9. Nc3 {[%emt 0:00:26]} f5 {[%emt 0:06:48]} 10. exf5 {[%emt 0:09:02]} gxf5 {[%emt 0:06:08]} 11. Re1 {[%emt 0:17:26]} Ne7 {[%emt 0:06:45]} 12. Bg5 {[%emt 0:04:11]} O-O {[%emt 0:05:40]} 13. Qd2 {[%emt 0:03:25]} Ng6 {[%emt 0:11:29]} 14. h4 {[%emt 0:12:46]} Qd6 {[%emt 0:22:38]} 15. Re2 {[%emt 0:15:02]} c4 {[%emt 0:11:57]} 16. h5 {[%emt 0:09:23]} Nf4 {[%emt 0:04:27]} 17. Bxf4 {[%emt 0:00:46]} exf4 {[%emt 0:00:07]} 18. d4 {[%emt 0:03:25]} Bd7 {[%emt 0:14:45]} 19. Rae1 {[%emt 0:02:15]} Rae8 {[%emt 0:02:53]} 20. Ne5 {[%emt 0:01:32]} c5 {[%emt 0:01:52]} 21. dxc5 {[%emt 0:03:30]} Qxd2 {[%emt 0:00:15]} 22. Rxd2 {[%emt 0:00:02]} Bc8 {[%emt 0:01:38]} 23. Nf3 {[%emt 0:02:08]} Rxe1+ {[%emt 0:01:14]} 24. Nxe1 {[%emt 0:00:01]} bxc5 {[%emt 0:00:11]} 25. Rd5 {[%emt 0:06:03]} Bd4 {[%emt 0:00:38]} 26. Nf3 {[%emt 0:00:21]} Bb7 {[%emt 0:00:38]} 27. Rd7 {[%emt 0:00:03]} Bxf3 {[%emt 0:00:31]} 28. gxf3 {[%emt 0:00:02]} Rb8 {[%emt 0:00:27]} 29. Na4 {[%emt 0:04:28]} Bxb2 {[%emt 0:00:55]} 30. Nxc5 {[%emt 0:00:50]} Ba3 {[%emt 0:00:29]} 31. Ne6 {[%emt 0:00:36]} a5 {[%emt 0:00:30]} 32. Rg7+ {[%emt 0:02:14]} Kh8 {[%emt 0:00:01]} 33. Rc7 {[%emt 0:00:41]} Kg8 {[%emt 0:00:58]} 34. Rxc4 {[%emt 0:00:41]} Rb2 {[%emt 0:00:27]} 35. Rxf4 {[%emt 0:01:57]} Rxc2 {[%emt 0:00:32]} 36. Rxf5 {[%emt 0:00:19]} Bb4 {[%emt 0:00:24]} 37. a3 {[%emt 0:00:31]} Bxa3 {[%emt 0:00:35]} 38. Rxa5 {[%emt 0:00:05]} Bd6 {[%emt 0:00:34]} 39. Rd5 {[%emt 0:01:18]} Be7 {[%emt 0:00:27]} 40. Nf4 {[%emt 0:01:10]} Rc4 {[%emt 0:00:29]} 41. Rf5 {[%emt 0:30:34]} Rc2 {[%emt 0:12:39]} 42. Kg2 {[%emt 0:00:00]} Bh4 {[%emt 0:01:53]} 43. Nh3 {[%emt 0:00:00]} Kg7 {[%emt 0:02:59]} 44. f4 {[%emt 0:00:00]} Ra2 {[%emt 0:07:08]} 45. Kf3 {[%emt 0:00:00]} Rb2 {[%emt 0:01:06]} 46. Rd5 {[%emt 0:00:00]} Kh6 {[%emt 0:03:15]} 47. Kg4 {[%emt 0:00:00]} Bxf2 {[%emt 0:01:12]} 48. Rd7 {[%emt 0:00:00]} Ra2 {[%emt 0:02:51]} 49. Ng5 {[%emt 0:00:00]} Ra7 {[%emt 0:00:11]} 50. Rd6+ {[%emt 0:00:00]} Kg7 {[%emt 0:00:07]} 51. h6+ {[%emt 0:00:00]} Kf8 {[%emt 0:00:16]} 52. Rd8+ {[%emt 0:00:00]} Ke7 {[%emt 0:00:05]} 53. Rh8 {[%emt 0:00:20]} Ra5 {[%emt 0:02:50]} 54. Rxh7+ {[%emt 0:00:20]} Kf8 {[%emt 0:00:29]} 55. Rf7+ {[%emt 0:00:16]} Ke8 {[%emt 0:00:10]} 56. Rb7 {[%emt 0:00:41]} Ra8 {[%emt 0:00:52]} 57. Rg7 {[%emt 0:00:22]} Ra6 {[%emt 0:00:32]} 58. h7 {[%emt 0:00:10]} Rh6 {[%emt 0:00:17]} 59. Rg8+ {[%emt 0:00:16]} 1-0

[Event "Czech Youth U14 Boys 2024"]
[Site "Kouty nad Desnou"]
[Date "2024.03.12"]
[Round "5.4"]
[White "Martirosyan, David"]
[Black "Topencik, Bruno"]
[Result "1/2-1/2"]
[ECO "D63"]
[WhiteElo "1981"]
[BlackElo "2006"]
[Annotator "RC"]
[PlyCount "60"]
[EventDate "2024.03.10"]
[EventType "swiss"]
[EventCountry "CZE"]
[SourceTitle "playchess.com"]
[Source "ChessBase"]
[SourceQuality "1"]
[TimeControl "40/5400+30:1800+30"]

1. Nf3 {[%emt 0:00:25]} Nf6 {[%emt 0:00:11]} 2. c4 {[%emt 0:00:48]} e6 {[%emt 0:00:25]} 3. Nc3 {[%emt 0:00:18]} d5 {[%emt 0:02:37]} 4. d4 {[%emt 0:00:09]} Be7 {[%emt 0:02:39]} 5. Bg5 {[%emt 0:00:10]} O-O {[%emt 0:01:05]} 6. e3 {[%emt 0:00:14]} Nbd7 {[%emt 0:02:00]} 7. Rc1 {[%emt 0:01:05]} Re8 {[%emt 0:05:15]} 8. Bd3 {[%emt 0:05:16]} a6 {[%emt 0:06:23]} 9. b3 {[%emt 0:02:04]} dxc4 {[%emt 0:08:28]} 10. bxc4 {[%emt 0:01:29]} c5 {[%emt 0:00:24]} 11. O-O {[%emt 0:01:20]} cxd4 {[%emt 0:02:12]} 12. exd4 {[%emt 0:00:14]} b6 {[%emt 0:00:28]} 13. Na4 {[%emt 0:13:36]} Bb7 {[%emt 0:03:46]} 14. c5 {[%emt 0:08:27]} bxc5 {[%emt 0:03:01]} 15. Nxc5 {[%emt 0:00:47]} Nxc5 {[%emt 0:03:17]} 16. dxc5 {[%emt 0:00:11]} Rc8 {[%emt 0:09:11]} 17. c6 {[%emt 0:08:24]} Rxc6 {[%emt 0:00:37]} 18. Rxc6 {[%emt 0:03:49]} Bxc6 {[%emt 0:00:56]} 19. Bxa6 {[%emt 0:01:57]} Qa5 {[%emt 0:04:19]} 20. Bxf6 {[%emt 0:01:14]} Bxf6 {[%emt 0:06:03]} 21. Bc4 {[%emt 0:02:04]} Rd8 {[%emt 0:02:06]} 22. Qb3 {[%emt 0:02:18]} Qa7 {[%emt 0:03:38]} 23. h3 {[%emt 0:05:26]} h6 {[%emt 0:01:53]} 24. Qe3 {[%emt 0:04:05]} Qb7 {[%emt 0:02:45]} 25. Re1 {[%emt 0:05:38]} Rc8 {[%emt 0:02:55]} 26. Qd3 {[%emt 0:04:34]} Rd8 {[%emt 0:07:04]} 27. Qb3 {[%emt 0:00:43]} Qa8 {[%emt 0:00:30]} 28. Rb1 {[%emt 0:08:02]} Kh8 {[%emt 0:01:02]} 29. Qe3 {[%emt 0:02:03]} Rc8 {[%emt 0:02:37]} 30. Rc1 {[%emt 0:04:54]} Rd8 1/2-1/2